fUSD/lending_fUSD_20240424
["ID","MTS","AMOUNT","RATE_DAILY","PERIOD"]
[323456444,1714000243128,-500.0,0.00012799,2]
[323456445,1714000243137,-500.0,0.00012799,2]
[323456447,1714000243146,-500.0,0.00012799,2]
[323456450,1714000243156,-500.0,0.00012799,2]
[323456453,1714000243165,-1000.0,0.00012799,2]
[323456454,1714000243174,-500.0,0.00012799,2]
[323456455,1714000243183,-500.0,0.00012799,2]
[323456456,1714000243192,-500.0,0.00012799,2]
[323456457,1714000243201,-500.0,0.00012799,2]
[323456458,1714000243210,-500.0,0.00012799,2]
[323456459,1714000243220,-500.0,0.00012799,2]
[323456460,1714000243229,-500.0,0.00012799,2]
[323456461,1714000243238,-500.0,0.00012799,2]
[323456462,1714000243247,-500.0,0.00012799,2]
[323456463,1714000243256,-500.0,0.00012799,2]
[323456464,1714000243265,-500.0,0.00012799,2]
[323456465,1714000243274,-551.54,0.00012799,2]
[323456466,1714000243284,-500.0,0.00012799,2]
[323456467,1714000243292,-500.0,0.00012799,2]
[323456468,1714000243302,-500.0,0.00012799,2]
[323456469,1714000243311,-500.0,0.00012799,2]
[323456470,1714000243320,-500.0,0.00012799,2]
[323456471,1714000243329,-196.47,0.00012799,2]
[323456472,1714000243338,-500.0,0.00012799,2]
[323456473,1714000243348,-500.0,0.00012799,2]
[323456474,1714000243361,-500.0,0.00012799,2]
[323456475,1714000243370,-500.0,0.00012799,2]
[323456476,1714000243381,-500.0,0.00012799,2]
[323456477,1714000243390,-500.0,0.00012799,2]
[323456478,1714000243399,-500.0,0.00012799,2]
[323456479,1714000243408,-500.0,0.00012799,2]
[323456480,1714000243418,-868.65,0.00012799,2]
[323456481,1714000243428,-269.03,0.00012799,2]
[323456482,1714000243657,-500.0,0.00012799,2]
[323456483,1714000243666,-500.0,0.00012799,2]
[323456484,1714000243679,-500.0,0.00012799,2]
[323456485,1714000243688,-203.61231704,0.00012799,2]
[323456486,1714000243698,-500.0,0.00012799,2]
[323456487,1714000243707,-500.0,0.00012799,2]
[323456488,1714000243718,-578.46,0.00012799,2]
[323456489,1714000243727,-500.0,0.00012799,2]
[323456490,1714000243736,-500.0,0.00012799,2]
[323456491,1714000243746,-500.0,0.00012799,2]
[323456492,1714000243756,-500.0,0.00012799,2]
[323456493,1714000243766,-500.0,0.00012799,2]
[323456494,1714000243775,-500.0,0.00012799,2]
[323456495,1714000243785,-500.0,0.00012799,2]
[323456496,1714000243796,-639.32244733,0.00012799,2]
[323456497,1714000243804,-628.21453734,0.00012799,2]
[323456498,1714000243814,-500.0,0.00012799,2]
[323456499,1714000243824,-584.13801515,0.00012799,2]
[323456500,1714000243833,-500.0,0.00012799,2]
[323456501,1714000243842,-500.0,0.00012799,2]
[323456502,1714000243854,-500.0,0.00012799,2]
[323456503,1714000243863,-500.0,0.00012799,2]
[323456504,1714000243875,-500.0,0.00012799,2]
[323456505,1714000243885,-500.0,0.00012799,2]
[323456506,1714000243895,-500.0,0.00012799,2]
[323456507,1714000243903,-500.0,0.00012799,2]
[323456508,1714000243913,-500.0,0.00012799,2]
[323456509,1714000243922,-1190.19,0.00012799,2]
[323456510,1714000243932,-500.0,0.00012799,2]
[323456511,1714000243941,-500.0,0.00012799,2]
[323456512,1714000243951,-266.02,0.00012799,2]
[323456513,1714000243961,-168.96,0.00012799,2]
[323456514,1714000243970,-500.0,0.00012799,2]
[323456515,1714000243980,-500.0,0.00012799,2]
[323456516,1714000243990,-500.0,0.00012799,2]
[323456517,1714000243999,-500.0,0.00012799,2]
[323456518,1714000244009,-500.0,0.00012799,2]
[323456519,1714000244018,-282.84,0.00012799,2]
[323456520,1714000244027,-500.0,0.00012799,2]
[323456521,1714000244036,-243.98815004,0.00012799,2]
[323456522,1714000244045,-500.0,0.00012799,2]
[323456523,1714000244054,-500.0,0.00012799,2]
[323456524,1714000244063,-500.0,0.00012799,2]
[323456525,1714000244073,-500.0,0.00012799,2]
[323456526,1714000244083,-500.0,0.00012799,2]
[323456527,1714000244092,-500.0,0.00012799,2]
[323456528,1714000244104,-500.0,0.00012799,2]
[323456529,1714000244113,-500.0,0.00012799,2]
[323456530,1714000244122,-345.38,0.00012799,2]
[323456531,1714000244132,-500.0,0.00012799,2]
[323456532,1714000244141,-500.0,0.00012799,2]
[323456533,1714000244150,-500.0,0.00012799,2]
[323456534,1714000244159,-3523.45,0.00012799,2]
[323456535,1714000244168,-500.0,0.00012799,2]
[323456536,1714000244177,-500.0,0.00012799,2]
[323456537,1714000244186,-500.0,0.00012799,2]
[323456538,1714000244195,-500.0,0.00012799,2]
[323456539,1714000244204,-500.0,0.00012799,2]
[323456540,1714000244213,-8322.66,0.00012799,2]
[323456541,1714000244222,-500.0,0.00012799,2]
[323456542,1714000244232,-168.45,0.00012799,2]
[323456543,1714000244245,-500.0,0.00012799,2]
[323456544,1714000244254,-500.0,0.00012799,2]
[323456545,1714000244264,-500.0,0.00012799,2]
[323456546,1714000244273,-500.0,0.00012799,2]
[323456547,1714000244282,-548.39,0.00012799,2]
[323456548,1714000244291,-500.0,0.00012799,2]
[323456549,1714000244301,-500.0,0.00012799,2]
[323456550,1714000244310,-500.0,0.00012799,2]
[323456551,1714000244320,-500.0,0.00012799,2]
[323456552,1714000244330,-500.0,0.00012799,2]
[323456553,1714000244340,-500.0,0.00012799,2]
[323456554,1714000244349,-500.0,0.00012799,2]
[323456555,1714000244361,-500.0,0.00012799,2]
[323456556,1714000244370,-500.0,0.00012799,2]
[323456557,1714000244380,-500.0,0.00012799,2]
[323456558,1714000244391,-500.0,0.00012799,2]
[323456559,1714000244403,-500.0,0.00012799,2]
[323456560,1714000244412,-500.0,0.00012799,2]
[323456561,1714000244422,-500.0,0.00012799,2]
[323456562,1714000244432,-500.0,0.00012799,2]
[323456563,1714000244442,-500.0,0.00012799,2]
[323456564,1714000244451,-500.0,0.00012799,2]
[323456565,1714000244461,-500.0,0.00012799,2]
[323456566,1714000244471,-500.0,0.00012799,2]
[323456567,1714000244481,-520.15,0.00012799,2]
[323456568,1714000244490,-500.0,0.00012799,2]
[323456569,1714000244499,-500.0,0.00012799,2]
[323456570,1714000244509,-500.0,0.00012799,2]
[323456571,1714000244518,-520.33,0.00012799,2]
[323456572,1714000244528,-500.0,0.00012799,2]
[323456573,1714000244539,-500.0,0.00012799,2]
[323456574,1714000244549,-463.71,0.00012799,2]
[323456575,1714000244558,-500.0,0.00012799,2]
[323456576,1714000244568,-500.0,0.00012799,2]
[323456577,1714000244577,-500.0,0.00012799,2]
[323456578,1714000244587,-500.0,0.00012799,2]
[323456579,1714000244596,-295.55,0.00012799,2]
[323456580,1714000244608,-500.0,0.00012799,2]
[323456581,1714000244617,-500.0,0.00012799,2]
[323456582,1714000244626,-500.0,0.00012799,2]
[323456583,1714000244635,-500.0,0.00012799,2]
[323456584,1714000244644,-500.0,0.00012799,2]
[323456585,1714000244653,-231.83,0.00012799,2]
[323456586,1714000244662,-500.0,0.00012799,2]
[323456587,1714000244674,-59401.66399804,0.000128,5]
[323456588,1714000244689,-190141.160154,0.000128,5]
[323456589,1714000244700,-64250.93680061,0.000128,5]
[323456590,1714000244712,-26989.92107,0.000128,5]
[323456591,1714000244727,-875.27431459,0.000128,5]
[323456592,1714000244739,-18176.82922307,0.000128,5]
[323456597,1714000245792,-2500.0,0.0001268,2]
[323456598,1714000245802,-500.0,0.0001279,2]
[323456599,1714000245811,-5146.07662906,0.00012798,2]
[323456600,1714000245821,-174947.72511134,0.000128,5]
[323456601,1714000245847,-1197.387015,0.00012727,2]
[323456602,1714000245860,-387837.47311154,0.000128,5]
[323456603,1714000245869,-1042.13545394,0.000128,2]
[323456604,1714000245878,-979.82244926,0.000128,2]
[323456605,1714000245887,-176.07710549,0.000128,2]
[323456606,1714000245897,-14791.57350013,0.00012809,2]
[323456607,1714000245906,-310.95271868,0.00012811,2]
[323456608,1714000245917,-14791.57350013,0.00012827,2]
[323456609,1714000245926,-310.95271868,0.00012833,2]
[323456610,1714000245935,-3152.68069713,0.00012839,2]
[323456611,1714000245945,-2278.25999582,0.00012839,2]
[323456612,1714000245954,-5129.38638617,0.00012845,2]
[323456614,1714000245966,-261.55499322,0.00012845,2]
[323456615,1714000245977,-839.78398951,0.00012845,2]
[323456616,1714000245988,-6418.12205847,0.00012845,2]
[323456630,1714001431662,-364.2836488,9.515e-05,2]
[323456631,1714001431674,-556.19518938,9.515e-05,2]
[323456632,1714001431769,-683.7905665,9.515e-05,2]
[323456633,1714001431781,-756.04288241,9.515e-05,2]
[323456634,1714001431791,-209.39367693,9.516e-05,2]
[323456635,1714001431800,-621.65874202,9.516e-05,2]
[323456636,1714001431809,-532.813531,9.52e-05,2]
[323456637,1714001431819,-90.8853653,9.531e-05,2]
[323456638,1714001431831,-171.6146347,9.531e-05,2]
[323456639,1714001431840,-207.88082671,0.0001,2]
[323456640,1714001431849,-28.63653859,0.0001,2]
[323456641,1714001431876,-758.63160891,0.0001,2]
[323456642,1714001431885,-2292.86839109,0.00011294,2]
[323456643,1714001431897,-1064.01999944,0.00011294,2]
[323456644,1714001431909,-564.00393569,0.00011294,2]
[323456645,1714001431923,-661.87135703,0.00011294,2]
[323456646,1714001431986,-1608.3385607,0.00011294,2]
[323456649,1714001431997,-2291.30000015,0.00011294,2]
[323456651,1714001432009,-811.61511842,0.00011294,2]
[323456653,1714001432022,-4934.82617957,0.00011294,2]
[323456655,1714001432037,-2097.96623144,0.00011294,2]
[323456729,1714001437712,-6267.60000006,0.00011294,2]
[323456734,1714001437880,-672.57,0.00011294,2]
[323456735,1714001437976,-633.02022641,0.00011294,2]
[323456736,1714001437985,-81.06051604,0.00011325,2]
[323456751,1714001439850,-918.93948396,0.00011325,2]
[323456752,1714001439860,-299.99,0.00011416,2]
[323456753,1714001439869,-1173.78,0.00011459,2]
[323456754,1714001439879,-163.17,0.00011476,2]
[323456755,1714001439887,-291.27394191,0.00011518,2]
[323456756,1714001439897,-499.99,0.00011518,2]
[323456757,1714001439906,-23.74042193,0.00011557,2]
[323456758,1714001439917,-141.90957807,0.00011557,2]
[323456759,1714001439926,-472.56444039,0.00011655,2]
[323456760,1714001439937,-1029.43499998,0.00011655,2]
[323456761,1714001439949,-1310.38055963,0.00011655,2]
[323456762,1714001439958,-1819.35,0.00011783,2]
[323456763,1714001440191,-262.5,0.00011795,2]
[323456764,1714001440201,-167.43,0.00011814,2]
[323456765,1714001440210,-150.99,0.00011814,2]
[323456766,1714001440220,-2750.0,0.00012,2]
[323456767,1714001440230,-409.12011988,0.00012032,2]
[323456768,1714001440240,-12647.05378054,0.00012033,2]
[323456769,1714001440249,-750.0,0.00012158,2]
[323456770,1714001440259,-155.0,0.0001221,2]
[323456771,1714001440269,-167.33,0.00012577,2]
[323456772,1714001440279,-988.9306,0.0001258,2]
[323456773,1714001440288,-11344.8049,0.0001258,2]
[323456774,1714001440298,-2469.967,0.0001258,2]
[323456775,1714001440308,-26377.9323,0.0001268,2]
[323456776,1714001440317,-81843.9805559,0.0001268,2]
[323456777,1714001440586,-1382.61525953,0.0001268,2]
[323456778,1714001440598,-638.7325,0.0001268,2]
[323456779,1714001440610,-5676.77792171,0.0001268,2]
[323456780,1714001440622,-680.21931978,0.0001268,2]
[323456781,1714001440634,-591.85152046,0.0001268,2]
[323456809,1714001442802,-942.66174752,0.0001268,2]
[323456810,1714001442813,-4454.11466821,0.0001268,2]
[323456814,1714001442862,-3789.04650689,0.0001268,2]
[323456815,1714001442871,-500.0,0.0001268,2]
[323456816,1714001442880,-7500.0,0.00012699,2]
[323456817,1714001442889,-310.95271868,0.00012728,2]
[323456818,1714001442898,-607.47656605,0.00012729,2]
[323456819,1714001442907,-1000.0,0.00012741,2]
[323456820,1714001442917,-1000.0,0.0001276,2]
[323456821,1714001442926,-172.1050513,0.00012764,2]
[323456822,1714001442935,-176.45129353,0.00012764,2]
[323456823,1714001442944,-6676.01898982,0.00012769,2]
[323456824,1714001442953,-181.38160287,0.00012778,2]
[323456825,1714001442962,-10000.0,0.0001278,2]
[323456826,1714001442971,-6676.01898978,0.00012781,2]
[323456827,1714001442980,-200.0,0.00012781,2]
[323456828,1714001442989,-300.42,0.00012787,2]
[323456829,1714001442998,-500.0,0.00012787,2]
[323456830,1714001443007,-500.0,0.00012787,2]
[323456831,1714001443016,-500.0,0.00012787,2]
[323456832,1714001443032,-500.0,0.00012787,2]
[323456833,1714001443041,-1257.8,0.00012787,2]
[323456834,1714001443050,-500.0,0.00012787,2]
[323456835,1714001443059,-500.0,0.00012787,2]
[323456836,1714001443068,-500.0,0.00012787,2]
[323456837,1714001443078,-500.0,0.00012787,2]
[323456838,1714001443087,-500.0,0.00012787,2]
[323456839,1714001443095,-643.78,0.00012787,2]
[323456840,1714001443106,-439.79,0.00012787,2]
[323456841,1714001443116,-500.0,0.00012787,2]
[323456842,1714001443127,-449.6965016,0.00012788,2]
[323456843,1714001443137,-500.0,0.00012788,2]
[323456844,1714001443147,-500.0,0.00012788,2]
[323456845,1714001443156,-500.0,0.00012788,2]
[323456846,1714001443170,-500.0,0.00012788,2]
[323456847,1714001443180,-500.0,0.00012788,2]
[323456848,1714001443189,-211.41,0.00012788,2]
[323456849,1714001443200,-500.0,0.00012788,2]
[323456850,1714001443209,-500.0,0.00012788,2]
[323456851,1714001443218,-500.0,0.00012788,2]
[323456852,1714001443227,-500.0,0.00012788,2]
[323456853,1714001443237,-500.0,0.00012788,2]
[323456854,1714001443246,-500.0,0.00012788,2]
[323456855,1714001443255,-500.0,0.00012788,2]
[323456856,1714001443265,-500.0,0.00012788,2]
[323456857,1714001443278,-569.93,0.00012788,2]
[323456858,1714001443287,-500.0,0.00012788,2]
[323456860,1714001443296,-500.0,0.00012788,2]
[323456861,1714001443306,-458.17,0.00012788,2]
[323456862,1714001443314,-500.0,0.00012788,2]
[323456863,1714001443323,-500.0,0.00012788,2]
[323456864,1714001443332,-500.0,0.00012788,2]
[323456865,1714001443341,-500.0,0.00012788,2]
[323456866,1714001443351,-500.0,0.00012788,2]
[323456867,1714001443360,-500.0,0.00012788,2]
[323456868,1714001443370,-500.0,0.00012788,2]
[323456869,1714001443379,-278.81,0.00012788,2]
[323456870,1714001443389,-500.0,0.00012788,2]
[323456871,1714001443398,-1140.6,0.00012788,2]
[323456872,1714001443408,-3376.64,0.00012788,2]
[323456873,1714001443419,-528.62,0.00012788,2]
[323456874,1714001443430,-458.99,0.00012788,2]
[323456875,1714001443439,-500.0,0.00012788,2]
[323456876,1714001443450,-500.0,0.00012788,2]
[323456877,1714001443459,-500.0,0.00012788,2]
[323456878,1714001443469,-500.0,0.00012788,2]
[323456879,1714001443478,-500.0,0.00012788,2]
[323456880,1714001443487,-500.0,0.00012788,2]
[323456881,1714001443497,-328.02,0.00012788,2]
[323456882,1714001443506,-500.0,0.00012788,2]
[323456883,1714001443515,-500.0,0.00012788,2]
[323456884,1714001443528,-500.0,0.00012788,2]
[323456885,1714001443537,-500.0,0.00012788,2]
[323456886,1714001443547,-500.0,0.00012788,2]
[323456887,1714001443556,-518.20725479,0.00012788,2]
[323456888,1714001443566,-500.0,0.00012788,2]
[323456889,1714001443575,-500.0,0.00012788,2]
[323456890,1714001443584,-535.0,0.00012789,2]
[323456891,1714001443593,-500.0,0.00012789,2]
[323456892,1714001443602,-500.0,0.00012789,2]
[323456893,1714001443611,-628.49,0.00012789,2]
[323456894,1714001443621,-500.0,0.00012789,2]
[323456895,1714001443630,-500.0,0.00012789,2]
[323456896,1714001443640,-500.0,0.00012789,2]
[323456897,1714001443650,-500.0,0.00012789,2]
[323456898,1714001443659,-500.0,0.00012789,2]
[323456899,1714001443668,-500.0,0.00012789,2]
[323456900,1714001443677,-832.45,0.00012789,2]
[323456901,1714001443686,-500.0,0.00012789,2]
[323456902,1714001443695,-500.0,0.00012789,2]
[323456903,1714001443704,-500.0,0.00012789,2]
[323456904,1714001443713,-293.05,0.00012789,2]
[323456905,1714001443722,-7996.71,0.00012789,2]
[323456906,1714001443731,-192.73,0.00012789,2]
[323456907,1714001443740,-500.0,0.00012789,2]
[323456908,1714001443749,-500.0,0.00012789,2]
[323456909,1714001443758,-500.0,0.00012789,2]
[323456910,1714001443767,-500.0,0.00012789,2]
[323456911,1714001443777,-500.0,0.00012789,2]
[323456912,1714001443787,-500.0,0.00012789,2]
[323456913,1714001443796,-500.0,0.0001279,2]
[323456914,1714001443806,-395.78,0.0001279,2]
[323456915,1714001443816,-500.0,0.0001279,2]
[323456916,1714001443825,-275.19284405,0.0001279,2]
[323456917,1714001443836,-500.0,0.0001279,2]
[323456918,1714001443848,-500.0,0.0001279,2]
[323456919,1714001443857,-500.0,0.0001279,2]
[323456920,1714001443867,-500.0,0.0001279,2]
[323456921,1714001443876,-370.34453708,0.0001279,2]
[323456922,1714001443886,-344.96279521,0.0001279,2]
[323456923,1714001443895,-500.0,0.0001279,2]
[323456924,1714001443904,-500.0,0.0001279,2]
[323456925,1714001443915,-500.0,0.0001279,2]
[323456926,1714001443925,-500.0,0.0001279,2]
[323456927,1714001443934,-500.0,0.0001279,2]
[323456928,1714001443945,-500.0,0.0001279,2]
[323456929,1714001443954,-500.0,0.0001279,2]
[323456930,1714001443964,-500.0,0.0001279,2]
[323456931,1714001443975,-500.0,0.0001279,2]
[323456932,1714001443987,-500.0,0.0001279,2]
[323456933,1714001443996,-500.0,0.0001279,2]
[323456934,1714001444006,-500.0,0.0001279,2]
[323456935,1714001444016,-504.37,0.0001279,2]
[323456936,1714001444030,-500.0,0.0001279,2]
[323456937,1714001444040,-500.0,0.0001279,2]
[323456938,1714001444049,-500.0,0.0001279,2]
[323456939,1714001444059,-500.0,0.0001279,2]
[323456940,1714001444070,-500.0,0.0001279,2]
[323456941,1714001444082,-500.0,0.0001279,2]
[323456942,1714001444092,-500.0,0.0001279,2]
[323456943,1714001444102,-500.0,0.0001279,2]
[323456944,1714001444112,-6676.01898978,0.00012793,2]
[323456945,1714001444123,-810.0,0.00012797,2]
[323456946,1714001444133,-500.0,0.00012797,2]
[323456947,1714001444142,-219.43,0.00012797,2]
[323456948,1714001444152,-500.0,0.00012797,2]
[323456949,1714001444162,-500.0,0.00012797,2]
[323456950,1714001444171,-500.0,0.00012797,2]
[323456951,1714001444181,-500.0,0.00012797,2]
[323456952,1714001444191,-348.46455884,0.00012797,2]
[323456953,1714001444200,-500.0,0.00012797,2]
[323456954,1714001444210,-500.0,0.00012797,2]
[323456955,1714001444219,-561.52,0.00012797,2]
[323456956,1714001444229,-500.0,0.00012797,2]
[323456957,1714001444238,-483.55750578,0.00012797,2]
[323456958,1714001444248,-500.0,0.00012797,2]
[323456959,1714001444258,-1767.85372074,0.00012798,2]
[323456960,1714001444267,-262.74013109,0.00012798,2]
[323456961,1714001444278,-10000.0,0.00012798,2]
[323456962,1714001444288,-500.0,0.00012798,2]
[323456963,1714001444297,-412.57336681,0.00012798,2]
[323456964,1714001444306,-500.0,0.00012798,2]
[323456965,1714001444315,-500.0,0.00012798,2]
[323456966,1714001444324,-500.0,0.00012798,2]
[323456967,1714001444334,-208.13,0.00012798,2]
[323456968,1714001444345,-500.0,0.00012798,2]
[323456969,1714001444355,-455.0428049,0.00012798,2]
[323456970,1714001444366,-489.82,0.00012798,2]
[323456971,1714001444375,-199.76219593,0.00012798,2]
[323456972,1714001444384,-500.0,0.00012798,2]
[323456973,1714001444394,-500.0,0.00012798,2]
[323456974,1714001444403,-500.0,0.00012798,2]
[323456975,1714001444412,-500.0,0.00012798,2]
[323456976,1714001444421,-500.0,0.00012798,2]
[323456977,1714001444430,-543.23,0.00012798,2]
[323456978,1714001444440,-500.0,0.00012798,2]
[323456979,1714001444449,-421.72,0.00012798,2]
[323456980,1714001444458,-512.24672567,0.00012798,2]
[323456981,1714001444467,-277.09,0.00012798,2]
[323456982,1714001444476,-500.0,0.00012798,2]
[323456983,1714001444486,-593.41,0.00012798,2]
[323456984,1714001444495,-500.0,0.00012798,2]
[323456985,1714001444504,-500.0,0.00012798,2]
[323456986,1714001444515,-500.0,0.00012798,2]
[323456987,1714001444525,-500.0,0.00012798,2]
[323456988,1714001444534,-500.0,0.00012798,2]
[323456989,1714001444543,-500.0,0.00012798,2]
[323456990,1714001444553,-500.0,0.00012798,2]
[323456991,1714001444563,-500.0,0.00012798,2]
[323456992,1714001444572,-607.77,0.00012798,2]
[323456993,1714001444581,-500.0,0.00012798,2]
[323456994,1714001444590,-500.0,0.00012798,2]
[323456995,1714001444599,-500.0,0.00012798,2]
[323456996,1714001444608,-500.0,0.00012798,2]
[323456997,1714001444617,-370.84,0.00012798,2]
[323456998,1714001444627,-500.0,0.00012798,2]
[323456999,1714001444636,-500.0,0.00012798,2]
[323457000,1714001444645,-500.0,0.00012798,2]
[323457001,1714001444655,-500.0,0.00012798,2]
[323457002,1714001444664,-500.0,0.00012798,2]
[323457003,1714001444673,-190.91,0.00012798,2]
[323457004,1714001444684,-638.68321936,0.00012799,2]
[323457005,1714001444693,-500.0,0.00012799,2]
[323457006,1714001444702,-500.0,0.00012799,2]
[323457007,1714001444711,-500.0,0.00012799,2]
[323457008,1714001444720,-500.0,0.00012799,2]
[323457009,1714001444729,-500.0,0.00012799,2]
[323457010,1714001444738,-262.83485406,0.00012799,2]
[323457011,1714001444748,-500.0,0.00012799,2]
[323457012,1714001444757,-500.0,0.00012799,2]
[323457013,1714001444766,-500.0,0.00012799,2]
[323457014,1714001444777,-415.4,0.00012799,2]
[323457015,1714001444786,-236.65,0.00012799,2]
[323457016,1714001444796,-500.0,0.00012799,2]
[323457017,1714001444805,-475.0321971,0.00012799,2]
[323457018,1714001444814,-500.0,0.00012799,2]
[323457019,1714001444824,-500.0,0.00012799,2]
[323457020,1714001444833,-167.15535366,0.00012799,2]
[323457021,1714001444844,-557.81071632,0.00012799,2]
[323457022,1714001444853,-500.0,0.00012799,2]
[323457023,1714001444862,-231.76,0.00012799,2]
[323457024,1714001444871,-500.0,0.00012799,2]
[323457025,1714001444880,-326.15,0.00012799,2]
[323457026,1714001444890,-307.16,0.00012799,2]
[323457027,1714001444898,-162.84662944,0.00012799,2]
[323457028,1714001444908,-621.1779076,0.00012799,2]
[323457029,1714001444917,-500.0,0.00012799,2]
[323457030,1714001444926,-500.0,0.00012799,2]
[323457031,1714001444936,-500.0,0.00012799,2]
[323457032,1714001444945,-500.0,0.00012799,2]
[323457033,1714001444954,-500.0,0.00012799,2]
[323457034,1714001444964,-500.0,0.00012799,2]
[323457035,1714001444973,-500.0,0.00012799,2]
[323457036,1714001444982,-500.0,0.00012799,2]
[323457037,1714001444992,-246.05,0.00012799,2]
[323457038,1714001445001,-500.0,0.00012799,2]
[323457039,1714001445011,-500.0,0.00012799,2]
[323457040,1714001445020,-473.8382297,0.00012799,2]
[323457041,1714001445033,-500.0,0.00012799,2]
[323457042,1714001445042,-470.0,0.00012799,2]
[323457043,1714001445051,-500.0,0.00012799,2]
[323457044,1714001445060,-467.47919955,0.00012799,2]
[323457045,1714001445072,-500.0,0.00012799,2]
[323457046,1714001445081,-546.57417225,0.00012799,2]
[323457047,1714001445090,-500.0,0.00012799,2]
[323457048,1714001445100,-500.0,0.00012799,2]
[323457049,1714001445110,-500.0,0.00012799,2]
[323457050,1714001445119,-500.0,0.00012799,2]
[323457051,1714001445128,-500.0,0.00012799,2]
[323457052,1714001445138,-500.99,0.00012799,2]
[323457053,1714001445148,-500.0,0.00012799,2]
[323457054,1714001445157,-500.0,0.00012799,2]
[323457055,1714001445167,-500.0,0.00012799,2]
[323457056,1714001445177,-500.0,0.00012799,2]
[323457057,1714001445187,-500.0,0.00012799,2]
[323457058,1714001445196,-155.0,0.00012799,2]
[323457059,1714001445206,-226.04,0.00012799,2]
[323457060,1714001445216,-588.74,0.00012799,2]
[323457061,1714001445225,-500.0,0.00012799,2]
[323457062,1714001445235,-500.0,0.00012799,2]
[323457063,1714001445245,-500.0,0.00012799,2]
[323457064,1714001445254,-32551.6919324,0.000128,2]
[323457065,1714001445264,-6676.01898978,0.00012805,2]
[323457066,1714001445273,-310.95271868,0.00012814,2]
[323457067,1714001445283,-6676.01898978,0.00012817,2]
[323457068,1714001445293,-6676.01898978,0.00012829,2]
[323457069,1714001445303,-6676.01898978,0.0001284,2]
[323457070,1714001445312,-1138.45782899,0.00012845,2]
[323457071,1714001445322,-13635.87126256,0.00012845,2]
[323457072,1714001445332,-546.7930402,0.00012845,2]
[323457073,1714001445341,-288.40093877,0.00012845,2]
[323457074,1714001445350,-20174.45661466,0.00012845,2]
[323457075,1714001445360,-3000.0,0.00012845,2]
[323457076,1714001445369,-170.51080146,0.0001285,2]
[323457077,1714001445379,-6676.01898978,0.00012852,2]
[323457078,1714001445389,-5146.45143902,0.00012858,2]
[323457079,1714001445399,-161.49803489,0.00012858,2]
[323457080,1714001445408,-19427.55566784,0.00012858,2]
[323457081,1714001445419,-18835.8915184,0.00012859,2]
[323457082,1714001445428,-4305.18529181,0.00012859,2]
[323457083,1714001445438,-741.0,0.0001286,2]
[323457084,1714001445447,-586520.9991468,0.0001286,2]
[323457085,1714001445456,-6676.01898978,0.00012864,2]
[323457086,1714001445466,-164.1036824,0.00012869,2]
[323457087,1714001445475,-6676.01898978,0.00012876,2]
[323457089,1714001445484,-567.0,0.00012877,2]
[323457090,1714001445493,-12970.32,0.00012878,2]
[323457092,1714001445502,-928733.92233309,0.00012878,2]
[323457094,1714001445512,-1775.8578558,0.00012878,2]
[323457096,1714001445522,-359.46858367,0.00012878,2]
[323457097,1714001445532,-1601481.72353746,0.0001288,2]